fUSD/lending_fUSD_20260501
["ID","MTS","AMOUNT","RATE_DAILY","PERIOD"]
[421430114,1777636888000,-151.0,9.424e-05,2]
[421430137,1777636888000,-151.0,0.0001,2]
[421430119,1777636888000,-747.3,9.67e-05,2]
[421430120,1777636888000,-9999.99,9.67e-05,2]
[421430116,1777636888000,-614.33,9.635e-05,2]
[421430129,1777636888000,-500.0,0.0001,2]
[421430134,1777636888000,-500.0,0.0001,2]
[421430142,1777636888000,-500.0,0.0001,2]
[421430136,1777636888000,-500.0,0.0001,2]
[421430156,1777636888000,-500.0,0.0001,2]
[421430158,1777636888000,-1820.63557738,0.00010274,2]
[421430157,1777636888000,-614.33,0.00010171,2]
[421430153,1777636888000,-151.0,0.0001,2]
[421430154,1777636888000,-151.0,0.0001,2]
[421430155,1777636888000,-151.0,0.0001,2]
[421430151,1777636888000,-199.50004447,0.0001,2]
[421430152,1777636888000,-151.0,0.0001,2]
[421430146,1777636888000,-151.0,0.0001,2]
[421430148,1777636888000,-151.0,0.0001,2]
[421430149,1777636888000,-151.0,0.0001,2]
[421430141,1777636888000,-151.0,0.0001,2]
[421430150,1777636888000,-151.0,0.0001,2]
[421430144,1777636888000,-151.0,0.0001,2]
[421430143,1777636888000,-151.0,0.0001,2]
[421430147,1777636888000,-151.0,0.0001,2]
[421430115,1777636888000,-947.17744543,9.546e-05,2]
[421430140,1777636888000,-500.0,0.0001,2]
[421430138,1777636888000,-500.0,0.0001,2]
[421430131,1777636888000,-500.0,0.0001,2]
[421430139,1777636888000,-151.0,0.0001,2]
[421430135,1777636888000,-151.0,0.0001,2]
[421430145,1777636888000,-151.0,0.0001,2]
[421430160,1777636889000,-258.77126061,8.581e-05,2]
[421430159,1777636889000,-500.0,8.393e-05,2]
[421430161,1777636889000,5528.0,0.000108,5]
[421430165,1777636889000,-150.0,8.492e-05,2]
[421430163,1777636889000,180.278,7.945e-05,2]
[421430162,1777636889000,1000.0,8.225e-05,2]
[421430164,1777636889000,3388.533991,7.945e-05,2]
[421430166,1777636890000,500.0,8.129e-05,2]
[421430167,1777636890000,-500.0,8.492e-05,2]
[421430168,1777636890000,-500.0,8.492e-05,2]
[421430170,1777636890000,-623.12478971,8.492e-05,2]
[421430171,1777636890000,-372.84039843,8.492e-05,2]
[421430172,1777636890000,-150.99,8.864e-05,2]
[421430169,1777636890000,-628.09560454,8.492e-05,2]
[421430174,1777636891000,-279.168,8.493e-05,2]
[421430173,1777636891000,-3533.11,8.493e-05,2]
[421430175,1777636892000,1060.86477171,8.492e-05,3]
[421430176,1777636893000,-300.0,8.49e-05,2]
[421430177,1777636896000,208.95,7.972e-05,2]
[421430178,1777636897000,10058.34,7.93e-05,2]
[421430180,1777636899000,-8407.73,8.393e-05,2]
[421430179,1777636899000,-1592.28,8.219e-05,2]
[421430184,1777636900000,300.0,7.929e-05,2]
[421430185,1777636900000,-10000.01,8.393e-05,2]
[421430182,1777636900000,-9850.01,8.393e-05,2]
[421430181,1777636900000,-150.0,8.392e-05,2]
[421430191,1777637083000,-300.0,8.393e-05,2]
[421430198,1777637084000,2071.93315,7.945e-05,2]
[421430197,1777637084000,-300.0,8.393e-05,2]
[421430196,1777637084000,300.0,7.761e-05,2]
[421430195,1777637084000,1200.0,7.761e-05,2]
[421430194,1777637084000,152.0,8.616e-05,7]
[421430193,1777637084000,-300.0,8.393e-05,2]
[421430192,1777637084000,20000.0,7.762e-05,2]
[421430199,1777637085000,-300.0,8.393e-05,2]
[421430200,1777637086000,-300.0,8.393e-05,2]
[421430201,1777637086000,-300.0,8.393e-05,2]
[421430203,1777637086000,-300.0,8.393e-05,2]
[421430202,1777637086000,2500.86,7.585e-05,2]
[421430206,1777637087000,200.0,7.546e-05,2]
[421430205,1777637087000,1852.42,7.546e-05,2]
[421430204,1777637087000,300.0,7.761e-05,2]
[421430207,1777637087000,-300.0,8.393e-05,2]
[421430208,1777637088000,-300.0,8.393e-05,2]
[421430210,1777637089000,-300.0,8.393e-05,2]
[421430209,1777637089000,-300.0,8.393e-05,2]
[421430212,1777637090000,-150.0,8.218e-05,2]
[421430213,1777637090000,-150.0,8.393e-05,2]
[421430211,1777637090000,300.0,7.76e-05,2]
[421430214,1777637091000,-300.0,8.393e-05,2]
[421430215,1777637092000,-300.0,8.392e-05,2]
[421430216,1777637092000,500.0,7.434e-05,2]
[421430217,1777637092000,230.59,5.947e-05,2]
[421430219,1777637092000,230.59,7.136e-05,2]
[421430222,1777637092000,-69.41,8.392e-05,2]
[421430221,1777637092000,-230.59,8.326e-05,2]
[421430218,1777637092000,230.59,6.542e-05,2]
[421430220,1777637092000,230.59,7.731e-05,2]
[421430227,1777637094000,-500.0,8.392e-05,2]
[421430224,1777637094000,-1119.9498,8.392e-05,2]
[421430223,1777637094000,-184.48,8.219e-05,2]
[421430225,1777637094000,-500.0,8.392e-05,2]
[421430231,1777637094000,-500.0,8.392e-05,2]
[421430228,1777637094000,-500.0,8.392e-05,2]
[421430229,1777637094000,-500.0,8.392e-05,2]
[421430232,1777637094000,-500.0,8.392e-05,2]
[421430230,1777637094000,-500.0,8.392e-05,2]
[421430233,1777637094000,-500.0,8.392e-05,2]
[421430234,1777637094000,-500.0,8.392e-05,2]
[421430236,1777637094000,-500.0,8.392e-05,2]
[421430237,1777637094000,-500.0,8.392e-05,2]
[421430238,1777637094000,-500.0,8.392e-05,2]
[421430235,1777637094000,-500.0,8.392e-05,2]
[421430239,1777637094000,-500.0,8.392e-05,2]
[421430240,1777637094000,-500.0,8.392e-05,2]
[421430242,1777637094000,-195.5802,8.392e-05,2]
[421430241,1777637094000,-500.0,8.392e-05,2]
[421430226,1777637094000,-500.0,8.392e-05,2]
[421430244,1777637095000,-500.0,8.392e-05,2]
[421430245,1777637095000,-395.5802,8.392e-05,2]
[421430243,1777637095000,-304.4198,8.392e-05,2]
[421430247,1777637096000,-104.4198,8.392e-05,2]
[421430246,1777637096000,44274.67,7.312e-05,2]
[421430248,1777637096000,-390.49430364,8.392e-05,2]
[421430250,1777637096000,-205.08589636,8.392e-05,2]
[421430249,1777637096000,-500.0,8.392e-05,2]
[421430252,1777637097000,-500.0,8.392e-05,2]
[421430251,1777637097000,-294.91410364,8.392e-05,2]
[421430254,1777637097000,297.76,7.312e-05,2]
[421430255,1777637097000,1192.553212,8.178e-05,2]
[421430253,1777637097000,-405.08589636,8.392e-05,2]
[421430259,1777637097000,-500.0,8.392e-05,2]
[421430256,1777637097000,231.0,5.947e-05,2]
[421430257,1777637097000,-94.91410364,8.392e-05,2]
[421430260,1777637097000,-332.49795836,8.392e-05,2]
[421430258,1777637097000,-272.587938,8.392e-05,2]
[421430263,1777637098000,-500.0,8.392e-05,2]
[421430262,1777637098000,-272.587938,8.392e-05,2]
[421430261,1777637098000,-167.50204164,8.392e-05,2]
[421430265,1777637098000,150.039,0.00030137,120]
[421430264,1777637098000,-259.91002036,8.392e-05,2]
[421430267,1777637098000,-272.587938,8.392e-05,2]
[421430270,1777637098000,1200.0,7.311e-05,2]
[421430268,1777637098000,-500.0,8.392e-05,2]
[421430269,1777637098000,-187.32208236,8.392e-05,2]
[421430271,1777637098000,-245.01229493,8.392e-05,2]
[421430273,1777637098000,-272.587938,8.392e-05,2]
[421430272,1777637098000,-500.0,8.392e-05,2]
[421430266,1777637098000,-240.08997964,8.392e-05,2]
[421430274,1777637099000,-182.39976707,8.392e-05,2]
[421430276,1777637099000,-500.0,8.392e-05,2]
[421430277,1777637099000,-500.0,8.392e-05,2]
[421430278,1777637099000,-89.59976707,8.393e-05,2]
[421430279,1777637099000,150.039,0.00030136,120]
[421430275,1777637099000,-110.40023293,8.392e-05,2]
[421430282,1777637099000,150.0,7.76e-05,2]
[421430281,1777637099000,1680.0,8.042e-05,2]
[421430283,1777637099000,500.0,5.947e-05,2]
[421430284,1777637099000,500.0,5.947e-05,2]
[421430285,1777637099000,283.97494795,5.947e-05,2]
[421430280,1777637099000,1200.0,7.311e-05,2]
[421430295,1777637100000,923.52126763,8.392e-05,2]
[421430286,1777637100000,-500.0,8.392e-05,2]
[421430287,1777637100000,-425.31306489,8.392e-05,2]
[421430288,1777637100000,-274.68693511,8.393e-05,2]
[421430289,1777637100000,300.0,7.31e-05,2]
[421430290,1777637100000,420.0,8.041e-05,2]
[421430291,1777637100000,231.0,5.947e-05,2]
[421430293,1777637100000,923.52126763,8.392e-05,2]
[421430296,1777637100000,923.52126763,8.392e-05,2]
[421430292,1777637100000,923.52126763,8.392e-05,2]
[421430298,1777637100000,923.52126763,8.392e-05,2]
[421430304,1777637100000,923.52126763,8.392e-05,2]
[421430305,1777637100000,923.52126763,8.392e-05,2]
[421430303,1777637100000,923.52126763,8.392e-05,2]
[421430300,1777637100000,923.52126763,8.392e-05,2]
[421430294,1777637100000,923.52126763,8.392e-05,2]
[421430301,1777637100000,737.31859133,8.392e-05,2]
[421430297,1777637100000,923.52126763,8.392e-05,2]
[421430302,1777637100000,186.2026763,8.392e-05,2]
[421430299,1777637100000,923.52126763,8.392e-05,2]
[421430306,1777637100000,923.52126763,8.392e-05,2]
[421430308,1777637101000,923.52126763,8.392e-05,2]
[421430307,1777637101000,923.52126763,8.392e-05,2]
[421430311,1777637101000,923.52126763,8.392e-05,2]
[421430312,1777637101000,923.52126763,8.392e-05,2]
[421430314,1777637101000,344.92662023,8.392e-05,2]
[421430313,1777637101000,578.5946474,8.392e-05,2]
[421430310,1777637101000,923.52126763,8.392e-05,2]
[421430316,1777637101000,923.52126763,8.392e-05,2]
[421430315,1777637101000,923.52126763,8.392e-05,2]
[421430321,1777637101000,923.52126762,8.392e-05,2]
[421430320,1777637101000,923.52126762,8.392e-05,2]
[421430309,1777637101000,923.52126763,8.392e-05,2]
[421430319,1777637101000,923.52126762,8.392e-05,2]
[421430317,1777637101000,923.52126762,8.392e-05,2]
[421430318,1777637101000,923.52126762,8.392e-05,2]
[421430324,1777637102000,180.9646,8.392e-05,2]
[421430323,1777637102000,479.904571,8.392e-05,2]
[421430322,1777637102000,500.0,8.392e-05,2]
[421430332,1777637103000,815.28,4.659e-05,2]
[421430325,1777637103000,815.28,3.541e-05,2]
[421430327,1777637103000,399.00533541,3.914e-05,2]
[421430326,1777637103000,815.28,3.727e-05,2]
[421430329,1777637103000,815.28,4.1e-05,2]
[421430328,1777637103000,416.27466459,3.914e-05,2]
[421430331,1777637103000,815.28,4.473e-05,2]
[421430330,1777637103000,815.28,4.286e-05,2]
[421430333,1777637103000,815.28,4.845e-05,2]
[421430335,1777637103000,815.28,5.218e-05,2]
[421430336,1777637103000,815.28,5.404e-05,2]
[421430337,1777637103000,815.28,5.591e-05,2]
[421430339,1777637103000,300.0,6.541e-05,2]
[421430338,1777637103000,815.28,5.777e-05,2]
[421430341,1777637103000,315.65533541,6.15e-05,2]
[421430340,1777637103000,815.28,5.963e-05,2]
[421430342,1777637103000,499.62466459,6.15e-05,2]
[421430334,1777637103000,815.28,5.032e-05,2]
[421430347,1777637104000,815.28,6.895e-05,2]
[421430348,1777637104000,815.28,7.082e-05,2]
[421430346,1777637104000,815.28,6.709e-05,2]
[421430343,1777637104000,815.28,6.336e-05,2]
[421430344,1777637104000,419.0,7.195e-05,2]
[421430345,1777637104000,815.28,6.523e-05,2]
[421430350,1777637105000,542.08466459,6.332e-05,2]
[421430351,1777637105000,207.0,3.541e-05,2]
[421430352,1777637105000,-160.15384194,8.393e-05,2]
[421430349,1777637105000,5004.98533541,6.332e-05,2]
[421430357,1777637106000,443.76751013,8.392e-05,2]
[421430355,1777637106000,354.27533541,8.392e-05,2]
[421430356,1777637106000,145.72466459,8.392e-05,2]
[421430354,1777637106000,500.0,8.392e-05,2]
[421430353,1777637106000,8396.65,8.219e-05,2]
[421430358,1777637172000,1431.2,6.135e-05,2]
[421430359,1777637211000,300.0,5.776e-05,2]
[421430360,1777637214000,158.0,0.000301,120]
[421430364,1777637215000,211.4,6.109e-05,2]
[421430363,1777637215000,207.0,3.541e-05,2]
[421430362,1777637215000,-5259.50782528,8.393e-05,2]
[421430361,1777637215000,-151.0,8.39e-05,2]
[421430365,1777637216000,884.76,6.085e-05,2]
[421430367,1777637216000,-10000.01,8.393e-05,2]
[421430366,1777637216000,160.3,6.085e-05,2]
[421430368,1777637216000,-10000.01,8.393e-05,2]
[421430369,1777637217000,-10000.01,8.393e-05,2]
[421430370,1777637218000,-10000.01,8.393e-05,2]
[421430371,1777637219000,-10000.01,8.393e-05,2]
[421430375,1777637220000,-10000.01,8.393e-05,2]
[421430372,1777637220000,-500.0,8.391e-05,2]
[421430374,1777637220000,-1100.01,8.393e-05,2]
[421430373,1777637220000,-8400.0,8.392e-05,2]
[421430376,1777637221000,-10000.01,8.393e-05,2]
[421430377,1777637223000,1200.0,5.031e-05,2]
[421430378,1777637223000,300.0,5.59e-05,2]
[421430380,1777637223000,1680.0,5.534e-05,2]
[421430379,1777637223000,420.0,6.149e-05,2]
[421430382,1777637223000,283.0,6.087e-05,2]
[421430384,1777637223000,1152.0,8.184e-05,2]
[421430381,1777637223000,587.0,6.764e-05,2]
[421430383,1777637223000,823.0,7.44e-05,2]
[421430386,1777637224000,372.667373,8.178e-05,2]
[421430385,1777637224000,-10000.01,8.393e-05,2]
[421430387,1777637225000,-10000.01,8.393e-05,2]
[421430388,1777637226000,-890.43763465,8.392e-05,2]
[421430390,1777637226000,-8898.96332382,8.393e-05,2]
[421430391,1777637226000,-10000.01,8.393e-05,2]
[421430389,1777637226000,-210.60904153,8.392e-05,2]
[421430395,1777637227000,250.0,3.895e-05,2]
[421430394,1777637227000,160.15328858,7.893e-05,2]
[421430393,1777637227000,300.0,8.183e-05,2]
[421430392,1777637227000,-10000.01,8.393e-05,2]
[421430396,1777637228000,-150.0,8.392e-05,2]
[421430397,1777637228000,-485.58646998,8.392e-05,2]
[421430398,1777637228000,-9364.42353002,8.393e-05,2]
[421430406,1777637229000,-500.0,8.391e-05,2]
[421430399,1777637229000,-500.0,8.391e-05,2]
[421430400,1777637229000,-500.0,8.391e-05,2]
[421430401,1777637229000,-500.0,8.391e-05,2]
[421430405,1777637229000,-500.0,8.391e-05,2]
[421430404,1777637229000,-500.0,8.391e-05,2]
[421430403,1777637229000,-500.0,8.391e-05,2]
[421430402,1777637229000,-500.0,8.391e-05,2]
[421430409,1777637229000,-500.0,8.391e-05,2]
[421430408,1777637229000,-500.0,8.391e-05,2]
[421430410,1777637229000,-500.0,8.391e-05,2]
[421430420,1777637229000,665.36,7.297e-05,2]
[421430413,1777637229000,-500.0,8.391e-05,2]
[421430419,1777637229000,-0.01,8.391e-05,2]
[421430407,1777637229000,-500.0,8.391e-05,2]
[421430417,1777637229000,-500.0,8.391e-05,2]
[421430418,1777637229000,-500.0,8.391e-05,2]
[421430412,1777637229000,-500.0,8.391e-05,2]
[421430414,1777637229000,-500.0,8.391e-05,2]
[421430415,1777637229000,-500.0,8.391e-05,2]
[421430416,1777637229000,-500.0,8.391e-05,2]
[421430421,1777637229000,665.36,8.209e-05,2]
[421430411,1777637229000,-500.0,8.391e-05,2]
[421430428,1777637230000,-500.0,8.391e-05,2]
[421430424,1777637230000,-500.0,8.391e-05,2]
[421430429,1777637230000,-500.0,8.391e-05,2]
[421430426,1777637230000,-500.0,8.391e-05,2]
[421430422,1777637230000,-275.64438691,8.391e-05,2]
[421430423,1777637230000,-500.0,8.391e-05,2]
[421430425,1777637230000,-500.0,8.391e-05,2]
[421430430,1777637230000,-500.0,8.391e-05,2]
[421430427,1777637230000,-500.0,8.391e-05,2]
[421430432,1777637230000,-500.0,8.391e-05,2]
[421430438,1777637230000,-500.0,8.392e-05,2]
[421430437,1777637230000,-456.88539805,8.392e-05,2]
[421430433,1777637230000,-500.0,8.391e-05,2]
[421430431,1777637230000,-500.0,8.391e-05,2]
[421430435,1777637230000,-202.26645856,8.392e-05,2]
[421430434,1777637230000,-195.40615434,8.391e-05,2]
[421430439,1777637230000,-2369.80760214,8.393e-05,2]
[421430436,1777637230000,-500.0,8.392e-05,2]
[421430440,1777637312000,-189.84773086,8.219e-05,2]
[421430441,1777637390000,-67.15226914,8.219e-05,2]
[421430442,1777637390000,-90.89074326,8.219e-05,2]
[421430444,1777637391000,-719.2748318,8.219e-05,2]
[421430443,1777637391000,1852.42,8.094e-05,2]
[421430457,1777637392000,-637.89506462,8.392e-05,2]
[421430455,1777637392000,-500.0,8.392e-05,2]
[421430453,1777637392000,-500.0,8.392e-05,2]
[421430451,1777637392000,-150.0,8.392e-05,2]
[421430450,1777637392000,-300.0,8.392e-05,2]
[421430446,1777637392000,-873.53442494,8.219e-05,2]
[421430449,1777637392000,-2102.9985,8.293e-05,2]
[421430447,1777637392000,-640.45,8.242e-05,2]
[421430454,1777637392000,-500.0,8.392e-05,2]
[421430445,1777637392000,500.0,8.119e-05,2]
[421430448,1777637392000,-317.45944608,8.292e-05,2]
[421430456,1777637392000,-500.0,8.392e-05,2]
[421430452,1777637392000,-201.0,8.392e-05,2]
[421430460,1777637392000,-500.0,8.392e-05,2]
[421430459,1777637392000,-500.0,8.392e-05,2]
[421430461,1777637392000,-500.0,8.392e-05,2]
[421430462,1777637392000,-500.0,8.392e-05,2]
[421430464,1777637392000,-302.4744184,8.392e-05,2]
[421430463,1777637392000,-500.0,8.392e-05,2]
[421430471,1777637392000,-2119.350548,8.393e-05,2]
[421430466,1777637392000,-500.0,8.392e-05,2]
[421430465,1777637392000,-500.0,8.392e-05,2]
[421430467,1777637392000,-500.0,8.392e-05,2]
[421430469,1777637392000,-261.87074076,8.392e-05,2]
[421430468,1777637392000,-500.0,8.392e-05,2]
[421430470,1777637392000,-11636.9730452,8.393e-05,2]
[421430458,1777637392000,-500.0,8.392e-05,2]
[421430472,1777637393000,-500.0,8.392e-05,2]
[421430473,1777637393000,-500.0,8.392e-05,2]
[421430475,1777637393000,-205.75297834,8.392e-05,2]
[421430476,1777637393000,-115419.07442166,8.393e-05,2]
[421430474,1777637393000,-500.0,8.392e-05,2]
[421430481,1777637432000,-744.39770958,8.383e-05,2]
[421430485,1777637432000,-1349.4276481,8.393e-05,2]
[421430482,1777637432000,-1200.0,8.392e-05,2]
[421430484,1777637432000,-377.32889972,8.392e-05,2]
[421430486,1777637432000,-2168.09710004,8.393e-05,2]
[421430483,1777637432000,-250.0,8.392e-05,2]
[421430488,1777637432000,-1567.0110101,8.393e-05,2]
[421430489,1777637432000,-3440.12665687,8.393e-05,2]
[421430490,1777637432000,-568412.08708983,8.393e-05,2]
[421430491,1777637432000,-39985.67252885,8.393e-05,2]
[421430492,1777637432000,-416.07694567,8.393e-05,2]
[421430487,1777637432000,-374.94758386,8.393e-05,2]
[421430506,1777637438000,-48993.48432967,8.393e-05,2]
[421430503,1777637438000,-1361.00204856,8.392e-05,2]
[421430507,1777637438000,-829.67010334,8.393e-05,2]
[421430504,1777637438000,-1773.41130784,8.392e-05,2]
[421430508,1777637438000,-380.52932165,8.393e-05,2]
[421430509,1777637438000,-748.83841681,8.393e-05,2]
[421430510,1777637438000,-3469.7027034,8.393e-05,2]
[421430505,1777637438000,-34817.11460597,8.393e-05,2]
[421430512,1777637438000,-6604.73662505,8.393e-05,2]
[421430511,1777637438000,-580.23789574,8.393e-05,2]
[421430574,1777637440000,-494.85661999,8.393e-05,2]
[421430573,1777637440000,-5518.66646757,8.393e-05,2]
[421430577,1777637441000,152.0,8.418e-05,7]
[421430575,1777637441000,-914.93,8.393e-05,2]
[421430598,1777637442000,-787.0,8.393e-05,2]
[421430599,1777637442000,-1415.239929,8.393e-05,2]
[421430613,1777637445000,-5532.0,8.393e-05,2]
[421430617,1777637488000,289.036,8.225e-05,2]
[421430616,1777637488000,4613.779,8.225e-05,2]
[421430618,1777637516000,150.0,0.00010189,5]
[421430619,1777637525000,97.195,8.119e-05,2]
[421430620,1777637525000,373.4319,8.119e-05,2]
[421430623,1777637744000,166.32,8.225e-05,2]
[421430622,1777637744000,166.32,7.402e-05,2]
[421430621,1777637744000,166.32,6.58e-05,2]
[421430625,1777637811000,-150.0,8.291e-05,2]
[421430624,1777637811000,-1200.0,8.291e-05,2]
[421430628,1777637811000,-207.53529149,8.292e-05,2]
[421430626,1777637811000,-300.0,8.291e-05,2]
[421430627,1777637811000,-300.0,8.291e-05,2]
[421430629,1777637876000,1773.41130784,8.292e-05,2]
[421430631,1777637881000,29.04659933,8.291e-05,2]
[421430630,1777637881000,120.95340067,8.291e-05,2]
[421430633,1777637882000,103.69340067,8.291e-05,2]
[421430632,1777637882000,1817.26,8.177e-05,2]
[421430634,1777637895000,5000.01,8.219e-05,2]
[421430636,1777637895000,1185.9,8.219e-05,2]
[421430635,1777637895000,5000.01,8.219e-05,2]
[421430637,1777637942000,-141.30659933,8.291e-05,2]
[421430638,1777637943000,500.0,8.172e-05,2]
[421430639,1777637943000,300.0,8.291e-05,2]
[421430640,1777637947000,150.36,4.028e-05,2]
[421430641,1777637948000,150.36,4.28e-05,2]
[421430642,1777637948000,150.36,4.532e-05,2]
[421430644,1777637948000,150.36,5.036e-05,2]
[421430645,1777637948000,150.36,5.287e-05,2]
[421430643,1777637948000,150.36,4.784e-05,2]
[421430649,1777637949000,150.36,6.294e-05,2]
[421430648,1777637949000,150.36,6.043e-05,2]
[421430647,1777637949000,150.36,5.791e-05,2]
[421430646,1777637949000,150.36,5.539e-05,2]
[421430653,1777637950000,150.36,7.302e-05,2]
[421430652,1777637950000,150.36,7.05e-05,2]
[421430651,1777637950000,150.36,6.798e-05,2]
[421430650,1777637950000,150.36,6.546e-05,2]
[421430654,1777637951000,150.36,7.553e-05,2]
[421430656,1777637951000,150.36,8.057e-05,2]
[421430655,1777637951000,150.36,7.805e-05,2]
[421430657,1777637962000,2587.67213169,8.282e-05,2]
[421430658,1777637980000,258.0,8.292e-05,2]
[421430659,1777637985000,3798.21786831,8.283e-05,2]
[421430661,1777637986000,10000.01,8.283e-05,2]
[421430662,1777637986000,5172.95511329,8.283e-05,2]
[421430660,1777637986000,10000.01,8.283e-05,2]
[421430663,1777637987000,500.0,8.191e-05,2]
[421430665,1777638001000,300.0,8.292e-05,2]
[421430664,1777638001000,1200.0,8.292e-05,2]
[421430666,1777638042000,19927.83,7.987e-05,2]
[421430668,1777638043000,199.96,0.00030136,120]
[421430667,1777638043000,1086.018,8.193e-05,2]
[421430670,1777638088000,268.354,8.127e-05,2]
[421430669,1777638088000,4095.814,8.127e-05,2]
[421430671,1777638122000,155.0,0.00010189,5]
[421430672,1777638153000,500.0,8.192e-05,2]
[421430673,1777638165000,135.842,7.813e-05,2]
[421430674,1777638165000,1716.578,7.813e-05,2]
[421430679,1777638251000,770.9,7.876e-05,2]
[421430678,1777638251000,5000.01,7.876e-05,2]
[421430680,1777638287000,404.22,8.193e-05,2]
[421430681,1777638368000,500.0,8.191e-05,2]
[421430682,1777638370000,256.0,8.191e-05,2]
[421430685,1777638370000,-150.0,8.291e-05,2]
[421430683,1777638370000,-300.0,8.29e-05,2]
[421430684,1777638370000,-300.0,8.291e-05,2]
[421430686,1777638370000,-300.0,8.291e-05,2]
[421430690,1777638370000,-1000.0,8.292e-05,2]
[421430688,1777638370000,-207.53529149,8.292e-05,2]
[421430687,1777638370000,-364.0,8.291e-05,2]
[421430689,1777638370000,-500.0,8.292e-05,2]
[421430692,1777638370000,-184.89116086,8.292e-05,2]
[421430691,1777638370000,-264.13022981,8.292e-05,2]
[421430693,1777638370000,-500.0,8.292e-05,2]
[421430703,1777638370000,-500.0,8.292e-05,2]
[421430695,1777638370000,-287.6457255,8.292e-05,2]
[421430696,1777638370000,-500.0,8.292e-05,2]
[421430697,1777638370000,-500.0,8.292e-05,2]
[421430699,1777638370000,-500.0,8.292e-05,2]
[421430698,1777638370000,-308.19600094,8.292e-05,2]
[421430700,1777638370000,-500.0,8.292e-05,2]
[421430701,1777638370000,-500.0,8.292e-05,2]
[421430702,1777638370000,-500.0,8.292e-05,2]
[421430694,1777638370000,-500.0,8.292e-05,2]
[421430704,1777638370000,-500.0,8.292e-05,2]
[421430705,1777638370000,-500.0,8.292e-05,2]
[421430706,1777638371000,-333.6015914,8.292e-05,2]
[421430711,1777638384000,-500.0,8.292e-05,2]
[421430709,1777638384000,-500.0,8.292e-05,2]
[421430710,1777638384000,-500.0,8.292e-05,2]
[421430708,1777638384000,-500.0,8.292e-05,2]
[421430707,1777638384000,-166.3984086,8.292e-05,2]
[421430713,1777638384000,-500.0,8.292e-05,2]
[421430714,1777638384000,-500.0,8.292e-05,2]
[421430715,1777638384000,-500.0,8.292e-05,2]
[421430716,1777638384000,-500.0,8.292e-05,2]
[421430720,1777638384000,-500.0,8.292e-05,2]
[421430717,1777638384000,-500.0,8.292e-05,2]
[421430719,1777638384000,-500.0,8.292e-05,2]
[421430718,1777638384000,-500.0,8.292e-05,2]
[421430712,1777638384000,-500.0,8.292e-05,2]
[421430726,1777638385000,-500.0,8.292e-05,2]
[421430727,1777638385000,-333.6015914,8.292e-05,2]
[421430724,1777638385000,-500.0,8.292e-05,2]
[421430725,1777638385000,-500.0,8.292e-05,2]
[421430722,1777638385000,-500.0,8.292e-05,2]
[421430723,1777638385000,-500.0,8.292e-05,2]
[421430721,1777638385000,-500.0,8.292e-05,2]
[421430730,1777638440000,500.0,7.736e-05,2]
[421430732,1777638440000,-520.57861903,8.292e-05,2]
[421430733,1777638440000,-500.0,8.292e-05,2]
[421430734,1777638440000,-183.30951853,8.292e-05,2]
[421430731,1777638440000,-166.3984086,8.292e-05,2]
[421430746,1777638441000,-500.0,8.292e-05,2]
[421430735,1777638441000,-500.0,8.292e-05,2]
[421430738,1777638441000,-500.0,8.292e-05,2]
[421430737,1777638441000,-500.0,8.292e-05,2]
[421430739,1777638441000,-500.0,8.292e-05,2]
[421430741,1777638441000,-500.0,8.292e-05,2]
[421430740,1777638441000,-650.0,8.292e-05,2]
[421430742,1777638441000,-194.02708483,8.292e-05,2]
[421430744,1777638441000,-500.0,8.292e-05,2]
[421430743,1777638441000,-500.0,8.292e-05,2]
[421430745,1777638441000,-500.0,8.292e-05,2]
[421430736,1777638441000,-500.0,8.292e-05,2]
[421430747,1777638441000,-500.0,8.292e-05,2]